bitfinex/quotes_SOLUSD_20241102
["timestamp","ask_amount","ask_price","bid_price","bid_amount"]
[1730564546589,11.46513524,163.89,163.86,6.1027]
[1730564546771,11.46513524,163.9,163.87,20.0]
[1730564547088,11.46513524,163.91,163.87,20.0]
[1730564547473,11.46513524,163.92,163.87,20.0]
[1730564547770,11.46513524,163.93,163.89,20.0]
[1730564548967,11.46513524,163.92,163.89,20.0]
[1730564549173,11.46513524,163.9,163.89,26.1015]
[1730564549367,11.46513524,163.9,163.88,15.255]
[1730564549590,11.46513524,163.91,163.88,21.357]
[1730564550364,11.46513524,163.92,163.88,21.357]
[1730564550565,11.46513524,163.91,163.88,15.255]
[1730564551185,11.46513524,163.92,163.88,15.255]
[1730564551982,11.46513524,163.95,163.89,31.46513524]
[1730564553296,28.0859,163.98,163.89,31.46513524]
[1730564553297,11.46513524,163.96,163.91,20.0]
[1730564553774,11.46513524,163.95,163.93,20.0]
[1730564554899,11.46513524,163.95,163.93,26.1001]
[1730564561102,11.46513524,163.94,163.92,15.2513]
[1730564561290,11.46513524,163.93,163.92,20.0]
[1730564561600,11.46513524,163.93,163.91,6.1008]
[1730564561975,11.46513524,163.92,163.9,20.0]
[1730564562583,11.46513524,163.93,163.9,20.0]
[1730564562980,11.46513524,163.93,163.9,26.1011]
[1730564565203,11.46513524,163.92,163.9,26.1011]
[1730564566284,11.46513524,163.91,163.89,15.2537]
[1730564566488,15.7671,163.96,163.89,15.2537]
[1730564566489,11.46513524,163.9,163.89,15.2537]
[1730564568901,11.46513524,163.9,163.88,6.3562183]
[1730564569404,11.46513524,163.91,163.88,6.3562183]
[1730564571105,11.46513524,163.91,163.88,12.4582183]
[1730564571904,11.46513524,163.93,163.88,27.7132183]
[1730564572115,11.46513524,163.93,163.89,20.0]
[1730564572316,11.46513524,163.94,163.89,20.0]
[1730564572899,11.46513524,163.93,163.89,20.0]
[1730564573209,11.46513524,163.93,163.9,6.1012]
[1730564573407,11.46513524,163.92,163.9,6.1012]
[1730564574312,11.46513524,163.93,163.9,6.1012]
[1730564577606,11.46513524,163.94,163.9,21.3544]
[1730564581700,11.46513524,163.96,163.91,20.0]
[1730564582594,11.46513524,163.95,163.91,20.0]
[1730564583617,11.46513524,163.95,163.92,6.1005]
[1730564584917,11.46513524,163.95,163.92,21.3518]
[1730564590028,11.46513524,163.93,163.9,6.34634455]
[1730564590219,11.46513524,163.91,163.9,6.34634455]
[1730564591213,6.074,163.97,163.9,6.34634455]
[1730564591214,11.46513524,163.92,163.9,12.44734455]
[1730564592107,11.46513524,163.92,163.9,6.34634455]
[1730564596134,11.46513524,163.91,163.9,6.34634455]
[1730564596638,11.46513524,163.91,163.9,12.44754455]
[1730564597215,11.46513524,163.91,163.9,6.34634455]
[1730564598832,11.46513524,163.92,163.9,6.34634455]
[1730564600624,11.46513524,163.93,163.9,6.34634455]
[1730564601431,11.46513524,163.94,163.9,6.34634455]
[1730564601635,11.46513524,163.94,163.9,27.70064455]
[1730564602436,11.46513524,163.96,163.92,21.3518]
[1730564603219,11.46513524,163.95,163.92,21.3518]
[1730564608141,11.46513524,163.96,163.92,21.3518]
[1730564608732,11.46513524,163.97,163.92,21.3518]
[1730564608935,11.46513524,163.99,163.93,31.46513524]
[1730564609265,11.46513524,163.99,163.95,20.0]
[1730564610542,11.46513524,163.99,163.96,6.099]
[1730564610917,11.46513524,163.97,163.95,15.2484]
[1730564611239,11.46513524,163.96,163.95,15.2484]
[1730564612123,11.46513524,163.96,163.95,21.3478]
[1730564612421,11.46513524,163.96,163.92,21.3518]
[1730564612629,11.46513524,163.96,163.93,20.0]
[1730564613958,11.46513524,163.95,163.93,20.0]
[1730564614163,11.46513524,163.94,163.93,20.0]
[1730564615558,11.46513524,163.95,163.93,20.0]
[1730564617853,11.46513524,163.95,163.92,27.69629719]
[1730564618266,9.96513524,163.95,163.92,27.69629719]
[1730564619950,11.46513524,163.96,163.92,27.69629719]
[1730564624778,11.46513524,163.98,163.93,20.0]
[1730564624949,11.46513524,163.97,163.93,20.0]
[1730564625480,11.46513524,163.96,163.93,20.0]
[1730564626050,11.46513524,163.96,163.93,26.0999]
[1730564626571,11.46513524,163.97,163.93,26.0999]
[1730564626874,11.46513524,163.97,163.93,41.3503]
[1730564627249,11.46513524,163.98,163.93,41.3503]
[1730564630976,11.46513524,163.97,163.93,41.3503]
[1730564633464,11.46513524,163.96,163.93,41.3503]
[1730564634671,11.46513524,163.95,163.92,12.44425496]
[1730564634985,11.46513524,163.93,163.92,6.34375496]
[1730564639072,17.56523524,163.93,163.92,6.34375496]
[1730564639461,17.56523524,163.93,163.89,20.0]
[1730564639781,17.56523524,163.93,163.9,6.34006732]
[1730564639782,11.46513524,163.91,163.9,6.34006732]
[1730564642175,11.46513524,163.92,163.9,6.34006732]
[1730564642393,11.46513524,163.93,163.9,6.34006732]
[1730564644565,11.46513524,163.92,163.9,6.34006732]
[1730564645776,11.46513524,163.95,163.9,39.15950256]
[1730564646076,11.46513524,163.96,163.9,39.15950256]
[1730564646295,11.46513524,163.95,163.9,39.15950256]
[1730564646586,11.46513524,163.95,163.9,27.69436732]
[1730564647586,11.46513524,163.95,163.91,26.1008]
[1730564648683,11.46513524,163.97,163.91,52.81813524]
[1730564648891,6.0983,163.98,163.93,20.0]
[1730564648892,17.56343524,163.98,163.93,20.0]
[1730564649871,11.46513524,163.98,163.93,26.1001]
[1730564650085,11.46513524,163.99,163.93,52.81563524]
[1730564651275,17.56273524,164.0,163.94,17.56453524]
[1730564651593,17.56273524,164.0,163.95,20.0]
[1730564652171,11.46513524,163.99,163.95,20.0]
[1730564652891,10.96513524,163.99,163.95,20.0]
[1730564655899,10.96513524,163.99,163.94,6.0994]
[1730564656084,10.96513524,163.99,163.95,20.0]
[1730564656403,10.96513524,163.99,163.95,6.0992]
[1730564657401,12.06732864,164.01,163.96,31.46513524]
[1730564657607,12.06732864,164.01,163.96,20.0]
[1730564658510,12.06732864,164.01,163.97,6.0986]
[1730564658973,12.01582864,164.01,163.97,6.0986]
[1730564667504,0.5506934,164.01,163.97,32.81033524]
[1730564667685,0.5506934,164.01,163.98,20.0]
[1730564668189,0.5506934,164.01,163.98,37.56323524]
[1730564668585,0.5506934,164.01,163.99,11.46513524]
[1730564669105,0.5506934,164.01,163.98,52.80893524]
[1730564670091,0.5506934,164.01,164.0,20.0]
[1730564670292,0.5506934,164.01,164.0,26.0975]
[1730564671199,0.0506934,164.01,164.0,26.0975]
[1730564673205,0.0506934,164.01,164.0,37.56263524]
[1730564675114,0.0506934,164.01,164.0,26.0975]
[1730564679104,0.0506934,164.01,164.0,37.56263524]
[1730564685021,0.0506934,164.01,164.0,107.5765302]
[1730564685930,0.0506934,164.01,164.0,130.3087302]
[1730564686501,0.0506934,164.01,164.0,130.4087302]
[1730564687308,11.46513524,164.12,164.03,24.153354]
[1730564687513,11.46513524,164.12,164.07,11.46513524]
[1730564687823,17.55783524,164.13,164.07,11.46513524]
[1730564690429,17.55783524,164.13,164.08,20.0]
[1730564691306,11.46513524,164.12,164.08,20.0]
[1730564693931,11.46513524,164.11,164.08,20.0]
[1730564694128,11.46513524,164.11,164.06,6.095]
[1730564694424,11.46513524,164.11,164.07,20.0]
[1730564695514,17.55823524,164.12,164.07,20.0]
[1730564696215,11.46513524,164.11,164.07,20.0]
[1730564701639,11.46513524,164.12,164.07,20.0]
[1730564701938,11.46513524,164.09,164.04,17.56083524]
[1730564702728,34.31293524,164.1,164.05,11.46513524]
[1730564702933,11.46513524,164.11,164.06,11.46513524]
[1730564703114,11.46513524,164.12,164.06,11.46513524]
[1730564703516,11.46513524,164.12,164.07,11.46513524]
[1730564703724,11.46513524,164.12,164.07,17.56003524]
[1730564705237,17.55783524,164.13,164.08,11.46513524]
[1730564705442,17.55783524,164.13,164.07,31.46513524]
[1730564705940,11.46513524,164.12,164.07,20.0]
[1730564706144,17.55783524,164.13,164.07,31.46513524]
[1730564706319,11.46513524,164.13,164.07,31.46513524]
[1730564706732,11.46513524,164.12,164.07,31.46513524]
[1730564707826,11.46513524,164.08,164.04,20.0]
[1730564708024,11.46513524,164.08,164.03,6.33950987]
[1730564708540,11.46513524,164.08,164.03,17.80464511]
[1730564709329,11.46513524,164.08,164.04,20.0]
[1730564710752,11.46513524,164.06,164.03,6.33950987]
[1730564710959,11.46513524,164.08,164.03,6.33950987]
[1730564711555,17.55983524,164.08,164.03,6.33950987]
[1730564711725,11.46513524,164.07,164.03,6.33950987]
[1730564711934,11.46513524,164.05,164.03,6.33950987]
[1730564712526,11.46513524,164.06,164.03,6.33950987]
[1730564714721,17.56013524,164.07,164.03,6.33950987]
[1730564718350,11.46513524,164.06,164.03,6.33950987]
[1730564719143,17.56013524,164.07,164.03,6.33950987]
[1730564719354,27.83573524,164.08,164.03,17.80464511]
[1730564719855,11.46513524,164.07,164.03,6.33950987]
[1730564720353,11.46513524,164.06,164.03,6.33950987]
[1730564721841,11.46513524,164.07,164.04,20.0]
[1730564722044,11.46513524,164.08,164.04,20.0]
[1730564730656,11.46513524,164.11,164.06,31.46513524]
[1730564730961,17.55823524,164.12,164.07,11.46513524]
[1730564731163,11.46513524,164.11,164.07,20.0]
[1730564731951,11.46513524,164.12,164.08,20.0]
[1730564733260,11.46513524,164.14,164.09,31.46513524]
[1730564733562,11.46513524,164.14,164.1,20.0]
[1730564734755,11.46513524,164.11,164.05,17.7965358]
[1730564734965,11.46513524,164.1,164.05,17.7965358]
[1730564735267,11.46513524,164.09,164.05,6.33140056]
[1730564736058,11.46513524,164.09,164.06,20.0]
[1730564738049,11.46513524,164.08,164.06,20.0]
[1730564742272,11.46513524,164.09,164.06,20.0]
[1730564743060,11.46513524,164.09,164.05,20.0]
[1730564743268,11.46513524,164.09,164.05,26.33695435]
[1730564745782,11.46513524,164.08,164.05,26.33695435]
[1730564746855,11.46513524,164.07,164.05,26.33695435]
[1730564751662,11.46513524,164.08,164.05,26.33695435]
[1730564754360,11.46513524,164.11,164.06,11.46513524]
[1730564755581,11.46513524,164.1,164.06,6.0951]
[1730564756079,11.46513524,164.09,164.06,6.0951]
[1730564757567,11.46513524,164.11,164.07,20.0]
[1730564757764,11.46513524,164.1,164.07,20.0]
[1730564758961,11.46513524,164.1,164.06,26.0953]
[1730564759157,11.46513524,164.11,164.06,26.0953]
[1730564760481,11.46513524,164.11,164.06,41.3336]
[1730564760985,11.46513524,164.1,164.06,41.3336]
[1730564761686,11.46513524,164.11,164.06,41.3336]
[1730564762064,11.46513524,164.1,164.06,41.3336]
[1730564765201,11.46513524,164.11,164.06,41.3336]
[1730564765379,11.46513524,164.1,164.06,41.3336]
[1730564769499,11.46513524,164.14,164.09,31.46513524]
[1730564769796,11.46513524,164.15,164.11,20.0]
[1730564770791,11.46513524,164.15,164.11,26.0933]
[1730564774095,11.46513524,164.15,164.11,41.3269]
[1730564775196,11.46513524,164.16,164.11,41.3269]
[1730564775812,12.06732864,164.17,164.12,11.46513524]
[1730564775996,12.06732864,164.17,164.14,6.0923]
[1730564776805,12.06732864,164.17,164.14,6.0923]
[1730564777187,0.6021934,164.17,164.13,21.324]
[1730564777382,0.6021934,164.17,164.14,20.0]
[1730564778088,12.06732864,164.17,164.14,20.0]
[1730564779414,12.06732864,164.17,164.14,26.0921]
[1730564779716,0.6021934,164.17,164.14,26.0921]
[1730564780289,12.06732864,164.17,164.13,21.324]
[1730564780507,12.06732864,164.17,164.14,20.0]
[1730564780907,0.6021934,164.17,164.14,20.0]
[1730564781087,0.6021934,164.17,164.14,31.46513524]
[1730564782513,0.6021934,164.17,164.16,20.0]
[1730564783107,12.06732864,164.17,164.15,20.0]
[1730564783314,11.46513524,164.16,164.15,20.0]
[1730564783610,11.46513524,164.16,164.14,20.0]
[1730564783795,11.46513524,164.15,164.13,20.0]
[1730564784111,12.06732864,164.17,164.13,20.0]
[1730564784615,12.06732864,164.17,164.14,6.0923]
[1730564784790,12.06732864,164.17,164.15,20.0]
[1730564786217,0.6021934,164.17,164.15,20.0]
[1730564787898,12.06732864,164.17,164.15,20.0]
[1730564788616,11.46513524,164.16,164.15,20.0]
[1730564790099,12.06732864,164.17,164.15,20.0]
[1730564790307,12.06732864,164.17,164.15,6.0919]
[1730564791116,11.46513524,164.16,164.15,20.0]
[1730564791998,0.6021934,164.17,164.15,31.46513524]
[1730564792208,0.6021934,164.17,164.16,31.46513524]
[1730564792408,0.6021934,164.17,164.16,26.0916]
[1730564793601,12.06732864,164.17,164.16,26.0916]
[1730564794015,12.06732864,164.17,164.15,20.0]
[1730564794214,11.46513524,164.16,164.13,20.0]
[1730564794512,12.06732864,164.17,164.13,20.0]
[1730564794904,0.6021934,164.17,164.13,20.0]
[1730564795414,0.6021934,164.17,164.13,31.46513524]
[1730564795601,0.6021934,164.17,164.15,20.0]
[1730564797698,0.6021934,164.17,164.15,26.0916]
[1730564797900,12.06732864,164.17,164.15,26.0916]
[1730564798203,0.6021934,164.17,164.15,26.0916]
[1730564799127,0.6021934,164.17,164.16,23.776884]
[1730564799416,0.6021934,164.17,164.16,43.776884]
[1730564800919,0.6021934,164.17,164.16,26.0916]
[1730564805424,0.6021934,164.17,164.16,61.33361924]
[1730564807411,0.6021934,164.17,164.16,61.71008924]
[1730564807608,0.6021934,164.17,164.16,61.81008924]
[1730564809797,0.6021934,164.17,164.16,61.71008924]
[1730564810202,0.6021934,164.17,164.16,50.244954]
[1730564811215,0.6021934,164.17,164.16,26.0916]
[1730564811529,0.6021934,164.17,164.16,37.55673524]
[1730564812824,0.6021934,164.17,164.16,61.33361924]
[1730564814210,0.6021934,164.17,164.16,61.71008924]
[1730564814916,0.6021934,164.17,164.16,61.33361924]
[1730564815121,0.6021934,164.17,164.16,49.868484]
[1730564815729,0.6021934,164.17,164.16,26.0916]
[1730564817035,0.6021934,164.17,164.16,49.868484]
[1730564817738,0.6021934,164.17,164.16,61.33361924]
[1730564822243,0.6021934,164.17,164.16,49.868484]
[1730564823642,0.6021934,164.17,164.16,61.33361924]
[1730564824345,0.6021934,164.17,164.16,49.868484]
[1730564824545,0.6021934,164.17,164.16,26.0916]
[1730564825247,0.6021934,164.17,164.16,61.33361924]
[1730564828348,0.6021934,164.17,164.16,49.868484]
[1730564832835,0.6021934,164.17,164.16,61.33361924]
[1730564833854,0.6021934,164.17,164.16,49.868484]
[1730564835853,0.6021934,164.17,164.16,61.33361924]
[1730564837135,0.6021934,164.17,164.16,49.868484]
[1730564842265,0.6021934,164.17,164.16,26.0916]
[1730564842558,12.06732864,164.17,164.16,26.0916]
[1730564842935,0.6021934,164.17,164.16,26.0916]
[1730564855752,12.06732864,164.17,164.15,21.3217]
[1730564855960,11.46513524,164.16,164.15,21.3217]
[1730564856645,11.46513524,164.16,164.15,15.2299]
[1730564856876,11.46513524,164.16,164.14,12.4269169]
[1730564857049,11.46513524,164.15,164.14,12.4269169]
[1730564857374,11.46513524,164.15,164.14,6.3348169]
[1730564857575,34.16143524,164.15,164.14,6.3348169]
[1730564857870,0.37647,164.14,164.1,6.0936]
[1730564858070,0.37647,164.14,164.11,6.32540587]
[1730564858368,11.46513524,164.12,164.11,6.32540587]
[1730564859259,11.46513524,164.12,164.11,32.41880587]
[1730564871090,11.46513524,164.12,164.11,6.32540587]
[1730564873664,11.46513524,164.12,164.11,32.41880587]
[1730564874260,11.46513524,164.13,164.11,47.65240587]
[1730564874962,16.3296,164.15,164.11,47.65240587]
[1730564874963,11.46513524,164.12,164.11,47.65240587]
[1730564880759,11.46513524,164.12,164.11,41.55900587]
[1730564881067,11.46513524,164.12,164.11,47.65240587]
[1730564882877,11.46513524,164.15,164.12,20.0]
[1730564884379,12.06732864,164.17,164.13,23.776884]
[1730564884567,0.6021934,164.17,164.14,20.0]
[1730564885177,0.6021934,164.17,164.15,21.3218]
[1730564885574,0.6021934,164.17,164.16,20.0]
[1730564886283,0.6021934,164.17,164.16,26.0916]
[1730564888486,12.06732864,164.17,164.16,26.0916]
[1730564891887,12.06732864,164.17,164.16,20.0]
[1730564892078,12.06732864,164.17,164.15,15.2299]
[1730564892278,11.46513524,164.16,164.15,15.2299]
[1730564893377,11.46513524,164.16,164.12,41.3258]
[1730564894281,0.6021934,164.17,164.14,20.0]
[1730564895589,0.6021934,164.17,164.16,20.0]
[1730564897490,0.6021934,164.17,164.16,26.0916]
[1730564899975,12.06732864,164.17,164.16,26.0916]
[1730564901593,0.6021934,164.17,164.16,26.0916]
[1730564903991,0.6021934,164.17,164.16,61.45910924]
[1730564906595,0.6021934,164.17,164.16,49.993974]
[1730564907292,0.6021934,164.17,164.16,61.45910924]
[1730564907493,0.6021934,164.17,164.16,49.993974]
[1730564908079,0.6021934,164.17,164.16,61.45910924]
[1730564908281,0.6021934,164.17,164.16,49.993974]
[1730564912489,0.6021934,164.17,164.16,49.868484]
[1730564912699,0.6021934,164.17,164.16,26.0916]
[1730564913601,12.06732864,164.17,164.16,26.0916]
[1730564914219,12.06732864,164.17,164.15,15.2299]
[1730564914397,11.46513524,164.16,164.15,15.2299]
[1730564915085,11.46513524,164.16,164.15,21.3218]
[1730564915710,11.46513524,164.16,164.15,41.3218]
[1730564916101,12.06732864,164.17,164.16,20.0]
[1730564916694,0.6021934,164.17,164.16,20.0]
[1730564917792,0.6021934,164.17,164.16,26.0916]
[1730564919513,12.06732864,164.17,164.16,26.0916]
[1730564920795,12.06732864,164.17,164.16,20.0]
[1730564921495,12.06732864,164.17,164.15,20.0]
[1730564921693,11.46513524,164.16,164.15,20.0]
[1730564925613,11.46513524,164.16,164.15,26.0919]
[1730564926709,12.06732864,164.17,164.15,26.0919]
[1730564927617,0.6021934,164.17,164.15,41.3218]
[1730564928605,11.46513524,164.16,164.15,41.3218]
[1730564944537,11.46513524,164.16,164.15,20.0]
[1730564944725,57.3256762,164.16,164.15,20.0]
[1730564945121,57.3256762,164.16,164.14,6.32803482]
[1730564945433,11.46513524,164.15,164.13,6.33709133]
[1730564945637,11.46513524,164.14,164.13,6.33709133]
[1730564954329,22.7677934,164.17,164.13,6.33709133]
[1730564954535,11.46513524,164.14,164.13,6.33709133]
[1730564954739,11.46513524,164.14,164.13,26.33709133]
[1730564961152,11.46513524,164.14,164.13,6.33709133]
[1730564968354,11.46513524,164.15,164.13,32.42979133]
[1730564968537,11.46513524,164.15,164.14,20.0]
[1730564970340,11.46513524,164.15,164.14,26.0923]
[1730564971834,12.06732864,164.17,164.14,41.3232]
[1730564975762,0.6021934,164.17,164.14,41.3232]
[1730564977839,12.06732864,164.17,164.14,41.3232]
[1730564978455,11.46513524,164.16,164.14,41.3232]
[1730564979967,11.46513524,164.15,164.14,35.2309]
[1730564980260,11.46513524,164.15,164.14,41.3232]
[1730564982857,11.46513524,164.16,164.14,41.3232]
[1730564986064,0.6021934,164.17,164.14,41.3232]
[1730564986248,0.6021934,164.17,164.14,52.78833524]
[1730564987146,0.6021934,164.17,164.14,41.3232]
[1730564994163,0.6021934,164.17,164.15,23.776884]
[1730564994378,0.6021934,164.17,164.16,20.0]
[1730564995474,0.6021934,164.17,164.16,26.0916]
[1730564998690,12.06732864,164.17,164.16,26.0916]
[1730565002193,0.6021934,164.17,164.16,26.0916]
[1730565006980,0.6021934,164.17,164.16,61.33361924]
[1730565015992,12.06732864,164.17,164.16,6.0916]
[1730565016903,12.06732864,164.17,164.14,21.56932469]
[1730565017089,11.46513524,164.15,164.14,21.56932469]
[1730565024792,11.46513524,164.15,164.14,27.66162469]
[1730565026317,11.46513524,164.15,164.14,21.56932469]
[1730565030420,11.46513524,164.15,164.14,27.66162469]
[1730565031415,11.46513524,164.15,164.14,47.66162469]
[1730565033505,0.6021934,164.17,164.15,20.0]
[1730565033715,12.06732864,164.17,164.15,20.0]
[1730565034624,12.06732864,164.17,164.16,26.0916]
[1730565037134,0.6021934,164.17,164.16,26.0916]
[1730565041817,0.6021934,164.17,164.16,61.33361924]
[1730565044611,0.6021934,164.17,164.16,61.58459924]
[1730565044821,0.6021934,164.17,164.16,61.71008924]
[1730565048028,0.6021934,164.17,164.16,61.81008924]
[1730565049026,0.6021934,164.17,164.16,61.71008924]
[1730565049208,0.6021934,164.17,164.16,61.81008924]
[1730565053629,0.6021934,164.17,164.16,61.71008924]
[1730565054215,0.6021934,164.17,164.16,61.81008924]
[1730565056531,0.6021934,164.17,164.16,61.91008924]
[1730565056734,0.6021934,164.17,164.16,70.17020342]
[1730565057220,0.6021934,164.17,164.16,116.03074438]
[1730565057413,0.6021934,164.17,164.16,118.17074438]
[1730565059207,0.6021934,164.17,164.16,72.31020342]
[1730565059609,0.6021934,164.17,164.16,70.17020342]
[1730565060834,0.6021934,164.17,164.16,117.60557906]
[1730565061238,0.6021934,164.17,164.16,71.7450381]
[1730565061729,0.6021934,164.17,164.16,117.60557906]
[1730565062521,0.6021934,164.17,164.16,121.00557906]
[1730565063623,0.6021934,164.17,164.16,75.1450381]
[1730565064644,0.6021934,164.17,164.16,71.7450381]
[1730565066520,0.6021934,164.17,164.16,117.60557906]
[1730565070319,11.46513524,164.26,164.18,0.2]
[1730565070634,11.46513524,164.27,164.24,20.0]
[1730565071732,11.46513524,164.27,164.24,26.0883]
[1730565071926,11.46513524,164.26,164.24,26.0883]
[1730565072321,11.46513524,164.28,164.24,41.3099]
[1730565072526,11.46513524,164.27,164.24,41.3099]
[1730565072925,11.46513524,164.26,164.24,41.3099]
[1730565073937,11.46513524,164.26,164.24,20.0]
[1730565074139,11.46513524,164.25,164.21,65.090984]
[1730565076219,11.46513524,164.24,164.21,41.3141]
[1730565079426,11.46513524,164.25,164.21,41.3141]
[1730565079623,11.46513524,164.26,164.21,52.77923524]
[1730565079855,11.46513524,164.26,164.23,20.0]
[1730565080229,11.46513524,164.25,164.23,20.0]
[1730565080926,11.46513524,164.25,164.23,26.0887]
[1730565081951,11.46513524,164.26,164.23,41.3112]
[1730565084550,11.46513524,164.27,164.23,41.3112]
[1730565085329,11.46513524,164.28,164.23,41.3112]
[1730565085538,27.36713524,164.29,164.25,20.0]
[1730565086163,27.36713524,164.29,164.27,20.0]
[1730565086735,11.46513524,164.28,164.27,20.0]
[1730565088354,27.36713524,164.29,164.27,20.0]
[1730565089342,11.46513524,164.28,164.27,20.0]
[1730565090331,14.86713524,164.29,164.27,20.0]
[1730565090529,11.46513524,164.29,164.27,20.0]
[1730565091545,11.46513524,164.31,164.27,20.0]
[1730565091953,11.46513524,164.3,164.27,20.0]
[1730565092339,11.46513524,164.3,164.28,6.0871]
[1730565092540,11.46513524,164.3,164.29,20.0]
[1730565093351,11.46513524,164.3,164.27,20.0]
[1730565093654,11.46513524,164.3,164.27,26.0874]
[1730565093839,11.46513524,164.3,164.27,41.3062]
[1730565095645,11.46513524,164.31,164.27,41.3062]
[1730565095958,27.77172864,164.33,164.29,20.0]
[1730565096159,12.06732864,164.33,164.29,20.0]
[1730565097957,0.6021934,164.33,164.31,20.0]
[1730565100344,0.6021934,164.33,164.32,26.0856]
[1730565102464,0.6021934,164.33,164.32,49.862484]
[1730565103468,0.6021934,164.33,164.32,61.32761924]
[1730565103854,0.6021934,164.33,164.32,61.70408924]
[1730565106464,0.6021934,164.33,164.32,6.0856]
[1730565106666,12.06732864,164.33,164.31,6.086]
[1730565107666,11.46513524,164.32,164.31,6.086]
[1730565107966,11.46513524,164.32,164.3,21.3024]
[1730565108268,12.06732864,164.33,164.3,21.3024]
[1730565108478,12.06732864,164.33,164.3,15.216]
[1730565108971,12.06732864,164.33,164.31,20.0]
[1730565109152,11.46513524,164.32,164.31,20.0]
[1730565109767,11.46513524,164.32,164.26,6.34353989]
[1730565109967,11.46513524,164.29,164.27,21.306]
[1730565110271,11.46513524,164.28,164.27,15.2185]
[1730565111550,11.46513524,164.28,164.27,35.2185]
[1730565113261,11.46513524,164.28,164.27,20.0]
[1730565115383,11.46513524,164.28,164.26,6.34353989]
[1730565115674,11.46513524,164.27,164.26,6.34353989]
[1730565120567,11.46513524,164.28,164.26,32.43143989]
[1730565120974,11.46513524,164.27,164.26,32.43143989]
[1730565121857,11.46513524,164.28,164.26,32.43143989]
[1730565122055,11.46513524,164.28,164.27,20.0]
[1730565122468,11.46513524,164.3,164.27,20.0]
[1730565123169,11.46513524,164.31,164.27,20.0]
[1730565124175,12.06732864,164.33,164.29,20.0]
[1730565125379,0.6021934,164.33,164.29,31.46513524]
[1730565125679,0.6021934,164.33,164.31,20.0]
[1730565126170,0.6021934,164.33,164.32,26.0856]
[1730565126871,0.6021934,164.33,164.32,61.32761924]
[1730565128178,0.6021934,164.33,164.32,68.09859924]
[1730565128357,0.6021934,164.33,164.32,83.35949924]
[1730565128677,0.6021934,164.33,164.32,83.38498924]
[1730565128861,0.6021934,164.33,164.32,83.48498924]
[1730565129268,0.6021934,164.33,164.32,83.38498924]
[1730565130759,0.6021934,164.33,164.32,83.48498924]
[1730565131391,0.6021934,164.33,164.32,76.86498924]
[1730565131676,0.6021934,164.33,164.32,76.48851924]
[1730565131977,0.6021934,164.33,164.32,29.862484]
[1730565133182,0.6021934,164.33,164.32,49.862484]
[1730565136461,0.6021934,164.33,164.32,26.0856]
[1730565138870,0.6021934,164.33,164.32,37.55073524]
[1730565139591,11.46513524,164.41,164.33,44.153354]
[1730565139769,11.46513524,164.41,164.36,11.46513524]
[1730565140181,11.46513524,164.41,164.37,20.0]
[1730565141689,11.46513524,164.4,164.39,20.0]
[1730565142197,11.46513524,164.4,164.38,15.2086]
[1730565142378,11.46513524,164.39,164.38,15.2086]
[1730565143374,11.46513524,164.39,164.32,30.4284]
[1730565143578,11.46513524,164.36,164.35,20.0]
[1730565144698,11.46513524,164.36,164.34,21.2965]
[1730565144885,11.46513524,164.35,164.34,21.2965]
[1730565145192,11.46513524,164.35,164.34,41.2965]
[1730565150290,11.46513524,164.36,164.34,41.2965]
[1730565151980,11.46513524,164.37,164.35,20.0]
[1730565153981,15.0399,164.39,164.35,20.0]
[1730565153982,11.46513524,164.36,164.35,20.0]
[1730565154187,11.46513524,164.36,164.35,26.0845]
[1730565157101,11.46513524,164.38,164.35,26.0845]
[1730565157304,11.46513524,164.38,164.35,41.2959]
[1730565158085,11.46513524,164.38,164.35,62.8742]
[1730565158288,11.46513524,164.41,164.37,43.776884]
[1730565159680,11.46513524,164.41,164.39,20.0]
[1730565160693,11.46513524,164.41,164.4,26.0827]
[1730565169513,11.46513524,164.45,164.41,20.0]
[1730565169816,11.46513524,164.47,164.43,20.0]
[1730565170318,11.46513524,164.47,164.45,20.0]
[1730565170815,11.46513524,164.48,164.45,20.0]
[1730565171620,12.06732864,164.49,164.45,20.0]
[1730565171917,11.46513524,164.48,164.47,20.0]
[1730565173196,11.56732864,164.49,164.47,20.0]
[1730565173699,11.56732864,164.49,164.47,26.0798]
[1730565174520,11.56732864,164.49,164.47,41.2801]
[1730565174704,0.1021934,164.49,164.47,41.2801]
[1730565176815,0.1021934,164.49,164.48,55.24201924]
[1730565177801,0.1021934,164.49,164.48,61.32171924]